[Event "GER-ch Blitz 2019"]
[Site "Magdeburg"]
[Date "2019.05.25"]
[Round "6.14"]
[White "Barzen, Pascal"]
[Black "Schneider, Ilja"]
[Result "0-1"]
[ECO "B07"]
[WhiteElo "2292"]
[BlackElo "2494"]
[Annotator "ChessBase"]
[PlyCount "118"]
[EventDate "2019.05.25"]
[EventType "tourn"]
[EventCountry "GER"]
[Tiebreak "Number of wins+Number of black wins"]
[SourceTitle "playchess.com"]
[Source "ChessBase"]
[SourceQuality "1"]
[TimeControl "180+2"]

1. e4 {[%emt 0:00:00]} d6 {[%emt 0:00:00]} 2. d4 {[%emt 0:00:01]} Nf6 3. Nc3 e5
{[%emt 0:00:00]} 4. Nf3 {[%emt 0:00:05]} exd4 {[%emt 0:00:03]} 5. Nxd4 {
[%emt 0:00:02]} Be7 {[%emt 0:00:01]} 6. Be2 {[%emt 0:00:05]} O-O {[%emt 0:00:
01]} 7. O-O {[%emt 0:00:03]} Re8 {[%emt 0:00:01]} 8. f4 {[%emt 0:00:01]} Bf8 {
[%emt 0:00:00]} 9. Bf3 {[%emt 0:00:01]} c5 {[%emt 0:00:01]} 10. Nde2 {[%emt 0:
00:05]} Nc6 {[%emt 0:00:01]} 11. Be3 {[%emt 0:00:08]} Bg4 {[%emt 0:00:02]} 12.
Ng3 {[%emt 0:00:14]} Bxf3 13. Qxf3 {[%emt 0:00:02]} Nd4 {[%emt 0:00:09]} 14.
Qd1 {[%emt 0:00:09]} Qb6 {[%emt 0:00:16]} 15. Rb1 {[%emt 0:00:01]} Rad8 {
[%emt 0:00:10]} 16. Kh1 {[%emt 0:00:07]} d5 {[%emt 0:00:25]} 17. e5 {[%emt 0:
00:11]} Ne4 {[%emt 0:00:01]} 18. Ngxe4 {[%emt 0:00:13]} dxe4 {[%emt 0:00:02]}
19. Nxe4 {[%emt 0:00:05]} Qg6 {[%emt 0:00:15]} 20. Ng3 {[%emt 0:00:25]} Nxc2 {
[%emt 0:00:08]} 21. Qe2 {[%emt 0:00:09]} Nxe3 22. Qxe3 {[%emt 0:00:01]} Qd3 {
[%emt 0:00:09]} 23. Qe4 {[%emt 0:00:07]} Qxe4 {[%emt 0:00:08]} 24. Nxe4 {
[%emt 0:00:01]} f6 {[%emt 0:00:01]} 25. Rbd1 {[%emt 0:00:19]} fxe5 {[%emt 0:00:
17]} 26. Rxd8 {[%emt 0:00:10]} Rxd8 27. fxe5 {[%emt 0:00:02]} Re8 {[%emt 0:00:
04]} 28. Rf5 {[%emt 0:00:15]} Re6 {[%emt 0:00:10]} 29. g3 {[%emt 0:00:18]} g6 {
[%emt 0:00:03]} 30. Nf6+ {[%emt 0:00:03]} Kg7 {[%emt 0:00:01]} 31. Rf2 {
[%emt 0:00:04]} Be7 {[%emt 0:00:20]} 32. Kg2 {[%emt 0:00:12]} Rxe5 {[%emt 0:00:
03]} 33. Ng4 {[%emt 0:00:05]} Re4 {[%emt 0:00:06]} 34. Kf3 {[%emt 0:00:01]} Re6
{[%emt 0:00:01]} 35. Rc2 {[%emt 0:00:05]} b6 {[%emt 0:00:04]} 36. Ne3 {[%emt 0:
00:01]} Bf6 {[%emt 0:00:06]} 37. b3 {[%emt 0:00:01]} Bd4 {[%emt 0:00:02]} 38.
Nc4 {[%emt 0:00:03]} h5 {[%emt 0:00:04]} 39. h3 {[%emt 0:00:03]} b5 {[%emt 0:
00:03]} 40. Na5 {[%emt 0:00:03]} Re3+ {[%emt 0:00:02]} 41. Kg2 {[%emt 0:00:01]}
Rc3 {[%emt 0:00:25]} 42. Re2 {[%emt 0:00:04]} c4 {[%emt 0:00:07]} 43. bxc4 {
[%emt 0:00:01]} bxc4 {[%emt 0:00:01]} 44. Re4 {[%emt 0:00:02]} Rc2+ {[%emt 0:
00:02]} 45. Kf1 {[%emt 0:00:03]} Rf2+ {[%emt 0:00:02]} 46. Ke1 {[%emt 0:00:01]}
Rxa2 {[%emt 0:00:02]} 47. Rxd4 {[%emt 0:00:11]} Rxa5 {[%emt 0:00:01]} 48. Rxc4
{[%emt 0:00:01]} Ra2 {[%emt 0:00:02]} 49. Rc6 {[%emt 0:00:01]} a5 {[%emt 0:00:
03]} 50. Kf1 {[%emt 0:00:03]} a4 {[%emt 0:00:01]} 51. h4 {[%emt 0:00:01]} a3 {
[%emt 0:00:01]} 52. Ra6 {[%emt 0:00:01]} Kf7 {[%emt 0:00:00]} 53. Kg1 {[%emt 0:
00:02]} Ke7 {[%emt 0:00:01]} 54. Kh1 {[%emt 0:00:03]} Kd7 {[%emt 0:00:01]} 55.
Kg1 {[%emt 0:00:03]} Kc7 {[%emt 0:00:01]} 56. Kh1 {[%emt 0:00:02]} Kb7 {
[%emt 0:00:00]} 57. Rf6 {[%emt 0:00:01]} Rb2 {[%emt 0:00:02]} 58. Rf7+ {
[%emt 0:00:04]} Kc6 {[%emt 0:00:00]} 59. Rf6+ {[%emt 0:00:02]} Kd5 {[%emt 0:00:
01]} 0-1

[Event "GER-ch Blitz 2019"]
[Site "Magdeburg"]
[Date "2019.05.25"]
[Round "6.15"]
[White "Krause, Benedict"]
[Black "Hebbinghaus, Holger"]
[Result "1-0"]
[ECO "B03"]
[WhiteElo "2434"]
[BlackElo "2310"]
[Annotator "NA"]
[PlyCount "62"]
[EventDate "2019.05.25"]
[EventType "tourn"]
[EventCountry "GER"]
[Tiebreak "Number of wins+Number of black wins"]
[SourceTitle "playchess.com"]
[Source "ChessBase"]
[SourceQuality "1"]
[TimeControl "180+2"]

1. e4 {[%emt 0:00:00]} Nf6 {[%emt 0:00:00]} 2. e5 {[%emt 0:00:01]} Nd5 {
[%emt 0:00:00]} 3. d4 {[%emt 0:00:00]} d6 {[%emt 0:00:00]} 4. c4 {[%emt 0:00:
02]} Nb6 {[%emt 0:00:00]} 5. exd6 {[%emt 0:00:01]} cxd6 {[%emt 0:00:01]} 6. Nc3
{[%emt 0:00:01]} g6 {[%emt 0:00:01]} 7. Be3 {[%emt 0:00:01]} Bg7 {[%emt 0:00:
00]} 8. Rc1 {[%emt 0:00:01]} O-O {[%emt 0:00:03]} 9. b3 {[%emt 0:00:01]} Bf5 {
[%emt 0:00:02]} 10. Nf3 {[%emt 0:00:11]} d5 {[%emt 0:00:20]} 11. c5 {[%emt 0:
00:01]} Nc8 {[%emt 0:00:01]} 12. b4 {[%emt 0:00:07]} a6 {[%emt 0:00:13]} 13.
Bd3 {[%emt 0:00:08]} Bg4 {[%emt 0:00:07]} 14. Be2 {[%emt 0:00:05]} Nc6 {
[%emt 0:00:07]} 15. a3 {[%emt 0:00:02]} e6 {[%emt 0:00:04]} 16. O-O {[%emt 0:
00:03]} N8e7 {[%emt 0:00:01]} 17. Ne5 {[%emt 0:01:26]} Nxe5 {[%emt 0:00:45]}
18. Bxg4 {[%emt 0:00:01]} Nc4 {[%emt 0:00:31]} 19. a4 {[%emt 0:00:08]} f5 {
[%emt 0:00:26]} 20. Be2 {[%emt 0:00:06]} f4 {[%emt 0:00:24]} 21. Bd2 {[%emt 0:
00:30]} Bxd4 {[%emt 0:00:04]} 22. Bxc4 {[%emt 0:00:01]} dxc4 {[%emt 0:00:01]}
23. Qe2 {[%emt 0:00:01]} e5 {[%emt 0:00:26]} 24. Qxc4+ {[%emt 0:00:07]} Kg7 {
[%emt 0:00:03]} 25. Ne4 {[%emt 0:00:03]} Qd5 {[%emt 0:00:02]} 26. b5 {[%emt 0:
00:18]} axb5 {[%emt 0:00:03]} 27. Qxd5 {[%emt 0:00:02]} Nxd5 {[%emt 0:00:01]}
28. axb5 Rfd8 {[%emt 0:00:03]} 29. c6 {[%emt 0:00:02]} bxc6 {[%emt 0:00:02]}
30. bxc6 {[%emt 0:00:02]} Rac8 {[%emt 0:00:02]} 31. Ba5 {[%emt 0:00:02]} Re8
1-0

[Event "GER-ch Blitz 2019"]
[Site "Magdeburg"]
[Date "2019.05.25"]
[Round "7.1"]
[White "Gustafsson, Jan"]
[Black "Kirchner, Thomas"]
[Result "1-0"]
[ECO "A52"]
[WhiteElo "2639"]
[BlackElo "2311"]
[Annotator "ChessBase"]
[PlyCount "111"]
[EventDate "2019.05.25"]
[EventType "tourn"]
[EventCountry "GER"]
[Tiebreak "Number of wins+Number of black wins"]
[SourceTitle "playchess.com"]
[Source "ChessBase"]
[SourceQuality "1"]
[TimeControl "180+2"]

1. d4 {[%emt 0:00:00]} Nf6 {[%emt 0:00:00]} 2. c4 {[%emt 0:00:01]} e5 {[%emt 0:
00:00]} 3. dxe5 {[%emt 0:00:02]} Ng4 {[%emt 0:00:00]} 4. Nf3 {[%emt 0:00:05]}
Bc5 {[%emt 0:00:01]} 5. e3 {[%emt 0:00:01]} Nc6 {[%emt 0:00:01]} 6. Nc3 {
[%emt 0:00:02]} Ngxe5 {[%emt 0:00:01]} 7. Nxe5 {[%emt 0:00:02]} Nxe5 {[%emt 0:
00:01]} 8. Be2 {[%emt 0:00:01]} O-O {[%emt 0:00:02]} 9. O-O {[%emt 0:00:02]}
Re8 {[%emt 0:00:01]} 10. b3 {[%emt 0:00:03]} a5 {[%emt 0:00:00]} 11. Bb2 {
[%emt 0:00:05]} Ra6 12. Ne4 {[%emt 0:00:12]} Bf8 {[%emt 0:00:10]} 13. c5 {
[%emt 0:00:27]} Rh6 {[%emt 0:00:19]} 14. f4 {[%emt 0:00:02]} Nc6 {[%emt 0:00:
02]} 15. Ng5 {[%emt 0:00:18]} d5 {[%emt 0:00:34]} 16. cxd6 {[%emt 0:00:06]}
Bxd6 {[%emt 0:00:15]} 17. Bc4 {[%emt 0:00:03]} Be6 {[%emt 0:00:10]} 18. Nxe6 {
[%emt 0:00:15]} fxe6 {[%emt 0:00:02]} 19. Qg4 {[%emt 0:00:05]} Rg6 {[%emt 0:00:
16]} 20. Qh5 {[%emt 0:00:02]} Rh6 {[%emt 0:00:26]} 21. Qg4 {[%emt 0:00:01]} Rg6
{[%emt 0:00:01]} 22. Qf3 {[%emt 0:00:01]} Kh8 {[%emt 0:00:05]} 23. Rad1 {
[%emt 0:00:04]} Qe7 {[%emt 0:00:04]} 24. g3 {[%emt 0:00:07]} Bc5 {[%emt 0:00:
05]} 25. Kg2 {[%emt 0:00:06]} e5 {[%emt 0:00:43]} 26. Qe4 {[%emt 0:00:01]} exf4
{[%emt 0:00:21]} 27. Qxe7 {[%emt 0:00:02]} Rxe7 {[%emt 0:00:10]} 28. exf4 {
[%emt 0:00:03]} Rd6 {[%emt 0:00:01]} 29. Rxd6 {[%emt 0:00:11]} Bxd6 {[%emt 0:
00:01]} 30. Rd1 {[%emt 0:00:08]} h6 {[%emt 0:00:01]} 31. Kf3 {[%emt 0:00:13]}
Kh7 {[%emt 0:00:01]} 32. Bd5 {[%emt 0:00:04]} Nd8 {[%emt 0:00:03]} 33. h4 {
[%emt 0:00:05]} b6 {[%emt 0:00:02]} 34. h5 {[%emt 0:00:02]} Ne6 {[%emt 0:00:05]
} 35. Kg4 {[%emt 0:00:02]} Nc5 {[%emt 0:00:01]} 36. Bf3 {[%emt 0:00:09]} Re3 {
[%emt 0:00:01]} 37. Bd4 {[%emt 0:00:03]} Re7 {[%emt 0:00:00]} 38. Rd2 Ne6 39.
Bb2 {[%emt 0:00:09]} Nc5 {[%emt 0:00:01]} 40. Bd5 {[%emt 0:00:03]} Ne4 {
[%emt 0:00:04]} 41. Rd4 {[%emt 0:00:05]} Nf6+ {[%emt 0:00:01]} 42. Kf3 {
[%emt 0:00:02]} Nxh5 43. Rc4 {[%emt 0:00:07]} Nf6 {[%emt 0:00:03]} 44. Bc6 {
[%emt 0:00:02]} Kg8 {[%emt 0:00:01]} 45. g4 {[%emt 0:00:01]} Ne8 {[%emt 0:00:
01]} 46. Bd5+ {[%emt 0:00:03]} Kh8 {[%emt 0:00:02]} 47. g5 {[%emt 0:00:02]} Bc5
{[%emt 0:00:02]} 48. gxh6 {[%emt 0:00:02]} Kh7 {[%emt 0:00:01]} 49. hxg7 Nxg7
50. Be4+ {[%emt 0:00:03]} Kg8 {[%emt 0:00:01]} 51. Rc1 {[%emt 0:00:01]} Ne6 {
[%emt 0:00:02]} 52. Rh1 {[%emt 0:00:02]} Nd4+ {[%emt 0:00:01]} 53. Ke3 {
[%emt 0:00:06]} Nf5+ {[%emt 0:00:00]} 54. Kd3 {[%emt 0:00:01]} Nd6 {[%emt 0:00:
05]} 55. Bd5+ {[%emt 0:00:03]} Nf7 {[%emt 0:00:01]} 56. Rh8# 1-0

[Event "GER-ch Blitz 2019"]
[Site "Magdeburg"]
[Date "2019.05.25"]
[Round "7.2"]
[White "Kopylov, Michael"]
[Black "Heidrich, Manfred"]
[Result "1-0"]
[ECO "A88"]
[WhiteElo "2413"]
[BlackElo "2351"]
[Annotator "NA"]
[PlyCount "43"]
[EventDate "2019.05.25"]
[EventType "tourn"]
[EventCountry "GER"]
[Tiebreak "Number of wins+Number of black wins"]
[SourceTitle "playchess.com"]
[Source "ChessBase"]
[SourceQuality "1"]
[TimeControl "180+2"]

1. d4 {[%emt 0:00:00]} f5 {[%emt 0:00:00]} 2. g3 {[%emt 0:00:00]} Nf6 {[%emt 0:
00:00]} 3. Bg2 {[%emt 0:00:00]} g6 {[%emt 0:00:00]} 4. c4 {[%emt 0:00:01]} Bg7
{[%emt 0:00:01]} 5. Nf3 {[%emt 0:00:00]} d6 {[%emt 0:00:00]} 6. O-O O-O {
[%emt 0:00:01]} 7. Nc3 {[%emt 0:00:03]} c6 8. Qb3 {[%emt 0:00:01]} Kh8 {
[%emt 0:00:07]} 9. Rd1 Qc7 {[%emt 0:00:06]} 10. Qa3 {[%emt 0:00:03]} Be6 {
[%emt 0:00:18]} 11. d5 {[%emt 0:00:05]} Bg8 {[%emt 0:00:02]} 12. Nd4 {[%emt 0:
00:20]} cxd5 {[%emt 0:00:37]} 13. cxd5 {[%emt 0:00:05]} Na6 {[%emt 0:00:04]}
14. Bg5 {[%emt 0:00:35]} Nc5 {[%emt 0:00:13]} 15. Rac1 {[%emt 0:00:02]} a5 {
[%emt 0:00:08]} 16. Na4 {[%emt 0:00:13]} b6 {[%emt 0:00:08]} 17. Nc6 {[%emt 0:
00:13]} e5 {[%emt 0:00:21]} 18. dxe6 {[%emt 0:00:08]} Bxe6 19. Nc3 Rac8 {
[%emt 0:00:12]} 20. Nb5 {[%emt 0:00:03]} Qf7 {[%emt 0:00:03]} 21. Nxd6 Qg8 {
[%emt 0:00:02]} 22. Ne7 {[%emt 0:00:10]} 1-0

[Event "GER-ch Blitz 2019"]
[Site "Magdeburg"]
[Date "2019.05.25"]
[Round "7.3"]
[White "Svane, Frederik"]
[Black "Ehmann, Thilo"]
[Result "1/2-1/2"]
[ECO "C84"]
[WhiteElo "2342"]
[BlackElo "2291"]
[Annotator "NA"]
[PlyCount "111"]
[EventDate "2019.05.25"]
[EventType "tourn"]
[EventCountry "GER"]
[Tiebreak "Number of wins+Number of black wins"]
[SourceTitle "playchess.com"]
[Source "ChessBase"]
[SourceQuality "1"]
[TimeControl "180+2"]

1. e4 {[%emt 0:00:00]} e5 {[%emt 0:00:00]} 2. Nf3 Nc6 3. Bb5 {[%emt 0:00:03]}
a6 {[%emt 0:00:00]} 4. Ba4 {[%emt 0:00:01]} Nf6 {[%emt 0:00:00]} 5. O-O {
[%emt 0:00:02]} Be7 {[%emt 0:00:01]} 6. d3 {[%emt 0:00:01]} b5 {[%emt 0:00:01]}
7. Bb3 {[%emt 0:00:01]} O-O {[%emt 0:00:01]} 8. Nc3 {[%emt 0:00:01]} d6 {
[%emt 0:00:01]} 9. a3 {[%emt 0:00:01]} Nd4 {[%emt 0:00:09]} 10. Nxd4 {[%emt 0:
00:09]} exd4 {[%emt 0:00:01]} 11. Nd5 {[%emt 0:00:01]} Nxd5 {[%emt 0:00:09]}
12. Bxd5 {[%emt 0:00:03]} Rb8 {[%emt 0:00:01]} 13. a4 {[%emt 0:00:08]} Be6 {
[%emt 0:00:14]} 14. Bxe6 {[%emt 0:00:04]} fxe6 {[%emt 0:00:01]} 15. f4 {
[%emt 0:00:02]} Qd7 {[%emt 0:00:02]} 16. b3 {[%emt 0:00:09]} Bf6 {[%emt 0:00:
10]} 17. Qg4 {[%emt 0:00:08]} c5 {[%emt 0:00:12]} 18. f5 {[%emt 0:00:12]} e5 {
[%emt 0:00:08]} 19. Bg5 {[%emt 0:00:10]} Qe7 {[%emt 0:00:18]} 20. Bxf6 {
[%emt 0:00:07]} Qxf6 {[%emt 0:00:01]} 21. axb5 {[%emt 0:00:09]} axb5 {[%emt 0:
00:00]} 22. Ra7 {[%emt 0:00:03]} Rf7 {[%emt 0:00:01]} 23. Rfa1 {[%emt 0:00:08]}
Rbf8 {[%emt 0:00:24]} 24. R1a5 {[%emt 0:00:28]} b4 {[%emt 0:00:09]} 25. R5a6 {
[%emt 0:00:10]} Kh8 {[%emt 0:00:14]} 26. g3 {[%emt 0:00:18]} Kg8 {[%emt 0:00:
20]} 27. Kg2 {[%emt 0:00:03]} Qh6 {[%emt 0:00:04]} 28. Rxf7 {[%emt 0:00:10]}
Rxf7 {[%emt 0:00:01]} 29. Qh4 {[%emt 0:00:58]} Qxh4 {[%emt 0:00:09]} 30. gxh4 {
[%emt 0:00:01]} Rf6 {[%emt 0:00:01]} 31. Kg3 {[%emt 0:00:02]} Kf8 {[%emt 0:00:
04]} 32. Kg4 {[%emt 0:00:01]} Rh6 {[%emt 0:00:02]} 33. Ra8+ {[%emt 0:00:02]}
Kf7 {[%emt 0:00:01]} 34. Ra7+ {[%emt 0:00:01]} Kf8 {[%emt 0:00:01]} 35. Rd7 {
[%emt 0:00:04]} Rf6 {[%emt 0:00:01]} 36. Kg5 {[%emt 0:00:02]} Rh6 {[%emt 0:00:
01]} 37. Rb7 {[%emt 0:00:04]} Rf6 {[%emt 0:00:01]} 38. Rb8+ {[%emt 0:00:01]}
Kf7 {[%emt 0:00:01]} 39. Ra8 {[%emt 0:00:04]} Rh6 {[%emt 0:00:02]} 40. Rh8 {
[%emt 0:00:01]} Ke7 {[%emt 0:00:06]} 41. Ra8 {[%emt 0:00:03]} Rf6 {[%emt 0:00:
02]} 42. Rg8 {[%emt 0:00:02]} Kf7 {[%emt 0:00:01]} 43. Ra8 {[%emt 0:00:01]} Rh6
{[%emt 0:00:02]} 44. Rh8 {[%emt 0:00:01]} Ke7 {[%emt 0:00:01]} 45. h5 {[%emt 0:
00:01]} Kf7 {[%emt 0:00:02]} 46. h4 {[%emt 0:00:01]} Rf6 {[%emt 0:00:17]} 47.
Ra8 {[%emt 0:00:04]} Rh6 {[%emt 0:00:01]} 48. Ra7+ {[%emt 0:00:01]} Kf8 {
[%emt 0:00:01]} 49. Ra8+ {[%emt 0:00:02]} Kf7 {[%emt 0:00:01]} 50. Rh8 {
[%emt 0:00:02]} Rf6 {[%emt 0:00:00]} 51. Ra8 {[%emt 0:00:05]} Rh6 {[%emt 0:00:
01]} 52. Ra1 {[%emt 0:00:01]} Rf6 53. Ra6 {[%emt 0:00:03]} Rh6 {[%emt 0:00:03]}
54. Ra7+ {[%emt 0:00:02]} Kf8 {[%emt 0:00:01]} 55. Ra8+ {[%emt 0:00:03]} Kf7 {
[%emt 0:00:01]} 56. Ra7+ {[%emt 0:00:01] Ke7} 1/2-1/2

[Event "GER-ch Blitz 2019"]
[Site "Magdeburg"]
[Date "2019.05.25"]
[Round "7.4"]
[White "Braeuer, Franz"]
[Black "Schulze, Marc"]
[Result "1/2-1/2"]
[ECO "B38"]
[WhiteElo "2445"]
[BlackElo "2220"]
[Annotator "NA"]
[PlyCount "70"]
[EventDate "2019.05.25"]
[EventType "tourn"]
[EventCountry "GER"]
[Tiebreak "Number of wins+Number of black wins"]
[SourceTitle "playchess.com"]
[Source "ChessBase"]
[SourceQuality "1"]
[TimeControl "180+2"]

1. e4 {[%emt 0:00:00]} c5 {[%emt 0:00:00]} 2. Nf3 {[%emt 0:00:01]} g6 {[%emt 0:
00:00]} 3. d4 {[%emt 0:00:00]} cxd4 4. Nxd4 {[%emt 0:00:01]} Bg7 {[%emt 0:00:
01]} 5. c4 {[%emt 0:00:01]} Nc6 {[%emt 0:00:00]} 6. Be3 {[%emt 0:00:01]} Nf6 {
[%emt 0:00:01]} 7. Nc3 {[%emt 0:00:00]} O-O {[%emt 0:00:02]} 8. Be2 {[%emt 0:
00:01]} d6 {[%emt 0:00:01]} 9. O-O {[%emt 0:00:02]} Bd7 {[%emt 0:00:00]} 10. h3
{[%emt 0:00:04]} Nxd4 {[%emt 0:00:02]} 11. Bxd4 {[%emt 0:00:01]} Bc6 {[%emt 0:
00:01]} 12. Qc2 {[%emt 0:00:01]} a5 {[%emt 0:00:03]} 13. Rad1 {[%emt 0:00:15]}
Nd7 {[%emt 0:00:01]} 14. Bxg7 Kxg7 {[%emt 0:00:02]} 15. Bg4 {[%emt 0:00:02]}
Ne5 {[%emt 0:00:07]} 16. c5 {[%emt 0:00:02]} Nxg4 {[%emt 0:00:11]} 17. hxg4 {
[%emt 0:00:00]} Qc8 {[%emt 0:00:07]} 18. cxd6 {[%emt 0:00:05]} Qxg4 {[%emt 0:
00:01]} 19. dxe7 {[%emt 0:00:47]} Rfe8 {[%emt 0:00:01]} 20. Nd5 {[%emt 0:00:12]
} Bxd5 {[%emt 0:00:02]} 21. exd5 {[%emt 0:00:14]} Rxe7 {[%emt 0:00:01]} 22.
Qc3+ {[%emt 0:00:01]} Kg8 {[%emt 0:00:09]} 23. d6 {[%emt 0:00:06]} Rd7 {
[%emt 0:00:01]} 24. Rd4 {[%emt 0:00:04]} Qe6 {[%emt 0:00:07]} 25. Rfd1 {
[%emt 0:00:24]} Qxa2 {[%emt 0:00:15]} 26. b3 {[%emt 0:00:07]} Qe2 {[%emt 0:00:
19]} 27. Re1 {[%emt 0:00:05]} Qb5 {[%emt 0:00:08]} 28. Qf3 {[%emt 0:00:15]}
Rad8 {[%emt 0:00:13]} 29. Red1 {[%emt 0:00:30]} Qc5 {[%emt 0:00:10]} 30. Qf6 {
[%emt 0:00:07]} b5 {[%emt 0:00:31]} 31. Rd5 {[%emt 0:00:03]} Qc2 {[%emt 0:00:
10]} 32. R5d3 {[%emt 0:00:21]} a4 {[%emt 0:00:09]} 33. bxa4 {[%emt 0:00:01]}
bxa4 {[%emt 0:00:00]} 34. Qa1 {[%emt 0:00:01]} Qc6 {[%emt 0:00:03]} 35. Qa3 {
[%emt 0:00:01]} h5 {[%emt 0:00:08]} 1/2-1/2

[Event "GER-ch Blitz 2019"]
[Site "Magdeburg"]
[Date "2019.05.25"]
[Round "7.5"]
[White "Zelbel, Patrick"]
[Black "Buhmann, Rainer"]
[Result "1/2-1/2"]
[ECO "B10"]
[WhiteElo "2439"]
[BlackElo "2573"]
[Annotator "ChessBase"]
[PlyCount "71"]
[EventDate "2019.05.25"]
[EventType "tourn"]
[EventCountry "GER"]
[Tiebreak "Number of wins+Number of black wins"]
[SourceTitle "playchess.com"]
[Source "ChessBase"]
[SourceQuality "1"]
[TimeControl "180+2"]

1. e4 {[%emt 0:00:00]} c6 {[%emt 0:00:00]} 2. c4 {[%emt 0:00:01]} d5 {[%emt 0:
00:00]} 3. exd5 {[%emt 0:00:01]} cxd5 {[%emt 0:00:01]} 4. cxd5 {[%emt 0:00:00]}
Nf6 {[%emt 0:00:02]} 5. Nc3 {[%emt 0:00:01]} Nxd5 {[%emt 0:00:03]} 6. Nf3 {
[%emt 0:00:01]} Nc6 {[%emt 0:00:02]} 7. Bb5 {[%emt 0:00:00]} Nxc3 {[%emt 0:00:
06]} 8. bxc3 {[%emt 0:00:01]} Qd5 {[%emt 0:00:01]} 9. Qa4 {[%emt 0:00:37]} a6 {
[%emt 0:00:34]} 10. Be2 {[%emt 0:00:17]} e6 {[%emt 0:00:08]} 11. O-O {[%emt 0:
00:06]} Be7 {[%emt 0:00:02]} 12. d4 {[%emt 0:00:35]} O-O {[%emt 0:00:19]} 13.
c4 {[%emt 0:00:08]} Qe4 14. Be3 Bf6 {[%emt 0:00:13]} 15. Rad1 {[%emt 0:00:06]}
Rd8 {[%emt 0:00:06]} 16. h3 {[%emt 0:00:25]} Qf5 {[%emt 0:00:16]} 17. Bd3 {
[%emt 0:00:14]} Qa5 {[%emt 0:00:02]} 18. Qxa5 {[%emt 0:00:04]} Nxa5 {[%emt 0:
00:02]} 19. d5 {[%emt 0:00:01]} Re8 {[%emt 0:00:30]} 20. Bb6 {[%emt 0:00:12]}
Bd8 {[%emt 0:00:02]} 21. Bd4 {[%emt 0:00:17]} exd5 {[%emt 0:00:11]} 22. cxd5 {
[%emt 0:00:02]} Bd7 {[%emt 0:00:07]} 23. Rb1 {[%emt 0:00:01]} f6 {[%emt 0:00:
10]} 24. Rfc1 {[%emt 0:00:08]} Rc8 {[%emt 0:00:16]} 25. Rxc8 {[%emt 0:00:01]}
Bxc8 {[%emt 0:00:01]} 26. Nd2 {[%emt 0:00:01]} b5 {[%emt 0:00:07]} 27. Ne4 {
[%emt 0:00:03]} Bf5 {[%emt 0:00:08]} 28. f3 Bxe4 {[%emt 0:00:02]} 29. fxe4 {
[%emt 0:00:24]} Bc7 {[%emt 0:00:06]} 30. Bc3 {[%emt 0:00:05]} Nc4 {[%emt 0:00:
04]} 31. a4 {[%emt 0:00:04]} Be5 {[%emt 0:00:04]} 32. axb5 {[%emt 0:00:02]}
axb5 {[%emt 0:00:01]} 33. Rxb5 {[%emt 0:00:02]} Nd6 {[%emt 0:00:03]} 34. Rb3 {
[%emt 0:00:02]} Bxc3 35. Rxc3 {[%emt 0:00:00]} Nxe4 {[%emt 0:00:03]} 36. Bxe4 {
[%emt 0:00:02]} 1/2-1/2

[Event "GER-ch Blitz 2019"]
[Site "Magdeburg"]
[Date "2019.05.25"]
[Round "7.6"]
[White "Baskin, Robert"]
[Black "Kopylov, Daniel"]
[Result "1/2-1/2"]
[ECO "D00"]
[WhiteElo "2398"]
[BlackElo "2263"]
[Annotator "NA"]
[PlyCount "92"]
[EventDate "2019.05.25"]
[EventType "tourn"]
[EventCountry "GER"]
[Tiebreak "Number of wins+Number of black wins"]
[SourceTitle "playchess.com"]
[Source "ChessBase"]
[SourceQuality "1"]
[TimeControl "180+2"]

1. d4 {[%emt 0:00:00]} d5 {[%emt 0:00:00]} 2. Bf4 {[%emt 0:00:00]} Bf5 {
[%emt 0:00:02]} 3. e3 {[%emt 0:00:02]} e6 {[%emt 0:00:02]} 4. Nf3 {[%emt 0:00:
01]} Nf6 {[%emt 0:00:01]} 5. c4 {[%emt 0:00:02]} Bxb1 {[%emt 0:00:04]} 6. Rxb1
{[%emt 0:00:01]} Bb4+ {[%emt 0:00:01]} 7. Ke2 {[%emt 0:00:01]} dxc4 {[%emt 0:
00:04]} 8. Qa4+ {[%emt 0:00:14]} Nc6 {[%emt 0:00:02]} 9. Ne5 {[%emt 0:00:03]}
Nd5 {[%emt 0:00:29]} 10. Bg3 {[%emt 0:00:14]} O-O {[%emt 0:00:04]} 11. Nxc6 {
[%emt 0:00:02]} bxc6 {[%emt 0:00:09]} 12. a3 {[%emt 0:00:07]} a5 {[%emt 0:00:
42]} 13. axb4 {[%emt 0:00:13]} axb4 {[%emt 0:00:01]} 14. Qxc6 {[%emt 0:00:07]}
c3 {[%emt 0:00:01]} 15. e4 {[%emt 0:00:24]} Nf6 {[%emt 0:00:25]} 16. bxc3 {
[%emt 0:00:16]} bxc3 {[%emt 0:00:07]} 17. Be5 {[%emt 0:00:18]} Ra2+ {[%emt 0:
00:10]} 18. Kf3 {[%emt 0:00:06]} Nd7 {[%emt 0:00:49]} 19. Qxc3 {[%emt 0:01:06]}
f5 {[%emt 0:00:01]} 20. Bc4 {[%emt 0:00:03]} Nxe5+ {[%emt 0:00:03]} 21. dxe5 {
[%emt 0:00:02]} fxe4+ {[%emt 0:00:01]} 22. Kxe4 {[%emt 0:00:09]} Qh4+ {[%emt 0:
00:04]} 23. Kd3 {[%emt 0:00:04]} Rd8+ {[%emt 0:00:01]} 24. Ke3 {[%emt 0:00:03]}
Qxf2+ {[%emt 0:00:02]} 25. Ke4 {[%emt 0:00:01]} Qxg2+ {[%emt 0:00:16]} 26. Ke3
{[%emt 0:00:02]} Qf2+ {[%emt 0:00:02]} 27. Ke4 {[%emt 0:00:00]} Qf5+ {[%emt 0:
00:01]} 28. Ke3 {[%emt 0:00:01]} Qf2+ {[%emt 0:00:01]} 29. Ke4 {[%emt 0:00:00]}
Rad2 {[%emt 0:00:08]} 30. Bxe6+ Kh8 31. Rb4 {[%emt 0:00:07]} Qh4+ {[%emt 0:00:
03]} 32. Ke3 {[%emt 0:00:02]} Qf2+ {[%emt 0:00:01]} 33. Ke4 {[%emt 0:00:01]}
Qg2+ {[%emt 0:00:02]} 34. Ke3 {[%emt 0:00:04]} Qxh1 {[%emt 0:00:02]} 35. Qxd2
Qg1+ {[%emt 0:00:03]} 36. Qf2 {[%emt 0:00:03]} Qc1+ {[%emt 0:00:02]} 37. Kf3 {
[%emt 0:00:01]} Qc6+ {[%emt 0:00:01]} 38. Kg3 {[%emt 0:00:02]} Qxe6 {[%emt 0:
00:00]} 39. Rf4 {[%emt 0:00:01]} h6 {[%emt 0:00:03]} 40. Rf8+ {[%emt 0:00:01]}
Rxf8 {[%emt 0:00:00]} 41. Qxf8+ {[%emt 0:00:01]} Kh7 {[%emt 0:00:01]} 42. Qf4 {
[%emt 0:00:00]} c5 {[%emt 0:00:00]} 43. Qe4+ {[%emt 0:00:00]} Qg6+ {[%emt 0:00:
01]} 44. Kf4 {[%emt 0:00:00]} Qxe4+ {[%emt 0:00:08]} 45. Kxe4 {[%emt 0:00:00]}
Kg6 {[%emt 0:00:01]} 46. Kd5 {[%emt 0:00:00]} Kf7 {[%emt 0:00:07]} 1/2-1/2